Cogmind - Beta 16 @@@ ROGUE MODE // 2026.01.11 @ 13:53:27 Player: jam Result: Destroyed self with Reinforced Deuterium Engine chain reaction Performance ------------- Evolutions (6) 3000 Regions Visited (13) 2600 Robots Destroyed (65) 325 Value Destroyed (2618) 2618 Prototype IDs (15) 300 Alien Tech Used (0) 0 Bonus (1563) 1563 TOTAL SCORE: 10406 Bonus ------- High Alert Combat Kills 54 Follower Combat Kills 1246 Met Data Miner 300 Friendly Fire -37 Cogmind --------- Core Integrity 0/1150 Matter 50/300 Energy 810/810 System Corruption 9% Temperature Cool (12) Movement Walking (120) Location -4/Factory Parts ------- > --- POWER (2) -------- Reinforced Fission Core > --- PROPULSION (4) --- Flexi-carbon Leg Myomer Leg Myomer Leg Myomer Leg > --- UTILITY (10) ----- Advanced Energy Well Advanced Targeting Computer Improved Target Analyzer EM Disruption Field Advanced System Shield > --- WEAPON (3) ------- Heavy Rocket Launcher > --- INVENTORY (5) ---- Micro Fission Core Flexi-carbon Leg Improved VSS Leg Myomer Leg Myomer Leg Peak State ------------ > --- POWER ------------ Neutrino Core Reinforced Fission Core > --- PROPULSION ------- Improved VSS Leg Myomer Leg Myomer Leg Myomer Leg > --- UTILITY ---------- Medium Storage Unit Advanced Energy Well Advanced Targeting Computer Advanced Targeting Computer Improved Target Analyzer Improved Phase Shifter Improved Heavy Armor Plating EM Disruption Field Advanced System Shield > --- WEAPON ----------- Gatling Laser Advanced Variable Charge Gun Long-range Missile Launcher > --- INVENTORY -------- Reinforced Deuterium Engine Fission Core Flexi-carbon Leg Flexi-carbon Leg Myomer Leg Advanced Signal Interpreter Gatling Laser Gauss Cannon Heavy Rocket Launcher Improved Plasma Cutter [Rating: 106] Favorites ----------- Power Cooled Ion Engine Engine Cooled Ion Engine Power Core Light Nuclear Core Reactor Antimatter Reactor Propulsion Armored Treads Treads Armored Treads Leg Myomer Leg Hover Unit Gravmag System Utility Advanced Targeting Computer Device Scrap Suit Storage Medium Storage Unit Processor Advanced Targeting Computer Hackware Makeshift Hacking Suite Protection Weapon Shielding Weapon Light EM Pulse Cannon Energy Gun Gatling Laser Energy Cannon Light EM Pulse Cannon Ballistic Gun Gauss Rifle Ballistic Cannon Gauss Cannon Launcher Long-range Missile Launcher Special Weapon Improved Plasma Cutter Build | -11 -10 -9 -9 -8 -7 -7 -7 -7 -6 -6 -6 -5 -4 ------- Run | Yrd Mat Mat Min Mat Fac Low Low Dat Pro Fac Ext Fac Fac Slots Evolved 12 | . . 2 . 2 2 . . . . 2 . 2 2 Power 1 | . . . . . 1 . . . . . . . . Propulsion 2 | . . 1 . . 1 . . . . . . . . Utility 8 | . . 1 . 2 . . . . . 2 . 1 2 Weapon 1 | . . . . . . . . . . . . 1 . Parts Attached 97 | 7 3 10 1 11 5 2 2 . 18 7 9 5 17 Power 14 | 1 . 2 . . 2 . 1 . 3 1 2 2 . Engine 8 | 1 . 2 . . 1 . 1 . 1 1 1 . . Core 5 | . . . . . 1 . . . 1 . 1 2 . Reactor 1 | . . . . . . . . . 1 . . . . Propulsion 27 | 2 . 4 . 7 1 . . . 3 2 3 . 5 Treads 11 | 2 . 4 . 4 1 . . . . . . . . Leg 11 | . . . . . . . . . 1 2 3 . 5 Wheel . | . . . . . . . . . . . . . . Hover 5 | . . . . 3 . . . . 2 . . . . Flight . | . . . . . . . . . . . . . . Utility 30 | 2 2 1 1 2 1 2 1 . 6 3 2 2 5 Device 6 | 1 . . . 1 . . . . 1 . . 1 2 Storage 3 | 1 1 . . . . . . . . . 1 . . Processor 14 | . . 1 . 1 1 1 1 . 4 2 1 1 1 Hackware 3 | . . . . . . 1 . . . 1 . . 1 Protection 4 | . 1 . 1 . . . . . 1 . . . 1 Artifact . | . . . . . . . . . . . . . . Weapon 26 | 2 1 3 . 2 1 . . . 6 1 2 1 7 Energy Gun 10 | . . 1 . 1 . . . . 2 1 1 . 4 Energy Cannon 5 | . . 1 . . . . . . 3 . . 1 . Ballistic Gun 5 | 2 1 . . . 1 . . . 1 . . . . Ballistic Cannon 2 | . . 1 . . . . . . . . 1 . . Launcher 3 | . . . . 1 . . . . . . . . 2 Special Weapon 1 | . . . . . . . . . . . . . 1 Impact Weapon . | . . . . . . . . . . . . . . Slashing Weapon . | . . . . . . . . . . . . . . Piercing Weapon . | . . . . . . . . . . . . . . Special Melee Weapon . | . . . . . . . . . . . . . . Unidentified Prototypes 5 | . . 2 . . . . . . . . 2 . 1 Corrupted Parts 5 | . . . . 2 1 . . . . . 1 . 1 System Corruption 21 | . . . . 9 2 . . . . . 7 . 3 Parts Lost 39 | . . 1 . 3 . 1 . . 14 1 2 2 15 Power 7 | . . 1 . . . . . . 4 . . . 2 Propulsion 8 | . . . . 1 . . . . 5 . . . 2 Utility 10 | . . . . 1 . . . . . 1 . 2 6 Weapon 14 | . . . . 1 . 1 . . 5 . 2 . 5 Highest Loss Streak 8 | . . 1 . 3 . 1 . . 8 1 2 1 7 To Critical Strikes . | . . . . . . . . . . . . . . Average Backups 8 | 3 7 8 9 9 8 9 9 10 5 6 9 8 8 Power . | 1 2 1 2 2 1 1 . . . . 1 1 1 Propulsion 1 | 1 1 1 3 2 . 1 1 1 . . 1 2 3 Utility 3 | . 1 1 1 2 5 5 5 6 4 4 4 1 1 Weapon 2 | . 1 3 3 2 2 1 2 3 1 1 2 3 1 Tool/Special . | . . . . . . . . . . . . . . Unused Backups 28 | . 2 4 2 3 1 . 1 . 3 . 8 1 3 Power 3 | . . 1 . . . . . . . . 1 1 . Propulsion 6 | . 1 1 1 2 1 . . . . . . . . Utility 14 | . 1 1 1 . . . 1 . 3 . 5 . 2 Weapon 4 | . . 1 . 1 . . . . . . 1 . 1 Tool/Special 1 | . . . . . . . . . . . 1 . . Average Slot Usage (%) 87 | . 100 95 100 86 90 95 99 100 57 75 98 92 88 Engine 5 | . 14 7 11 9 13 7 6 7 1 3 6 3 1 Core 3 | . . . . . 1 7 7 7 1 . 1 7 7 Reactor 1 | . . . . . . . . . 4 6 4 . . Treads 14 | . 28 32 33 5 29 30 30 30 5 . . . . Leg 7 | . . . . . . . . . 2 13 25 22 20 Hover 1 | . . . . 19 . . . . 4 2 . . . Device 2 | . 10 . . 9 7 3 . . 2 1 . 2 8 Storage 7 | . 14 11 11 9 7 7 7 7 1 3 11 11 9 Processor 20 | . . 10 11 9 14 18 23 23 24 29 27 23 16 Hackware 3 | . . . . . . 3 7 7 1 4 6 1 3 Protection 1 | . 3 11 11 7 . . . . . . . 1 3 Energy Gun 3 | . . 3 11 11 13 3 . . . 1 5 5 6 Energy Cannon 3 | . . 2 11 6 . 3 7 7 4 6 . 3 1 Ballistic Gun 3 | . 28 9 . . 1 7 7 7 . . . . . Ballistic Cannon 1 | . . 6 . . . . . . . . 5 5 2 Peak Build Rating 106 | 7 8 19 19 35 44 44 44 44 46 62 74 85 106 Average Rating 45 | 5 7 12 18 31 41 42 43 44 30 49 70 76 92 On Entrance 36 | . 7 8 19 19 31 44 42 44 44 39 62 70 85 Avg Prop Armor Cover (%) 10 | . . . . 7 . . . . 11 11 . . 1 Naked Turns 142 | . . . . . . . . . 142 . . . . Heaviest Build 104 | 11 16 26 28 32 36 35 31 31 36 48 55 89 104 Greatest Support 95 | 40 40 69 69 69 88 88 88 88 88 50 80 80 95 Greatest Overweight (x) 10 | . . . . 10 . . . . 2 2 . 1 1 Average Overweight (x) . | . . . . . . . . . . . . . . Largest Inventory Capacity 10 | 8 10 10 10 10 10 10 10 10 10 10 10 10 10 Average Capacity 8 | 7 8 10 10 10 10 10 10 10 6 7 10 10 9 Most Carried 10 | 6 9 10 10 10 10 10 10 10 10 10 10 10 10 Average Carried 8 | 3 7 8 9 9 8 8 9 10 5 6 9 9 8 Final Capacity 10 | 8 10 10 10 10 10 10 10 10 5 10 10 10 5 Final Carried 10 | 6 9 10 10 9 10 8 10 10 5 10 9 10 5 Scrap Suit Usage (%) 11 | . . . . 100 100 49 . . . . . . . Class Distribution -------------------- 39% | Mutant 33% | Scavenger-Mutant 13% | Commander-Mutant 5% | Commander-Gunner 4% | Scavenger-Gunner 3% | Derelict-Mutant Dominant Class ---------------- Mutant | -10/Materials Mutant | -9/Materials Mutant | -9/Mines Mutant | -8/Materials Scavenger-Mutant | -7/Factory Scavenger-Mutant | -7/Lower Caves Scavenger-Mutant | -7/Lower Caves Scavenger-Mutant | -7/Data Miner Mutant | -6/Proximity Caves Mutant | -6/Factory Commander-Mutant | -6/Extension Commander-Gunner | -5/Factory Scavenger-Gunner | -4/Factory Resources | -11 -10 -9 -9 -8 -7 -7 -7 -7 -6 -6 -6 -5 -4 ----------- Run | Yrd Mat Mat Min Mat Fac Low Low Dat Pro Fac Ext Fac Fac Matter Collected 1849 | 286 80 89 101 112 43 125 48 . 268 51 284 131 231 Remotely 194 | 144 50 . . . . . . . . . . . . Salvage Created 2605 | 113 146 287 164 177 120 172 . . 404 49 287 284 402 Parts 122 | 7 7 15 11 9 6 10 . . 12 2 11 9 23 Haulers Intercepted 4 | . 1 3 . . . . . . . . . . . Recyclers Shooed 4 | . . . . 1 . . . . . . 3 . . Parts Field Recycled . | . . . . . . . . . . . . . . Retrieved Matter . | . . . . . . . . . . . . . . Parts Self-Destructed 19 | . . . . . . 7 . . 12 . . . . Prevented 3 | . . . . . . 2 . . 1 . . . . Parts Restored . | . . . . . . . . . . . . . . Kills | -11 -10 -9 -9 -8 -7 -7 -7 -7 -6 -6 -6 -5 -4 ------- Run | Yrd Mat Mat Min Mat Fac Low Low Dat Pro Fac Ext Fac Fac Combat Hostiles Destroyed 49 | . 2 7 5 2 2 5 . . 9 . 5 5 7 Guns 20 | . 2 3 1 2 2 2 . . 2 . . 2 4 Cannons 22 | . . 4 3 . . 2 . . 5 . 4 3 1 AOE 4 | . . . 1 . . 1 . . 1 . . . 1 Classes Destroyed 18 | 2 2 1 1 3 1 1 . . 2 1 . . 4 Worker 2 | . . . . . . . . . . . . . 2 Builder 1 | . . . . . . . . . . . . . 1 Tunneler 1 | 1 . . . . . . . . . . . . . Hauler 4 | . 1 3 . . . . . . . . . . . Recycler 1 | 1 . . . . . . . . . . . . . Mechanic 1 | . . . . . . . . . . . . . 1 Operator 2 | . . . . . . . . . . 1 . 1 . Watcher 4 | . . . . 1 . . . . . 1 . 1 1 Swarmer 12 | . . 3 2 . . 4 . . 3 . . . . Grunt 15 | . 2 4 2 . . . . . 3 . . 4 . Brawler 1 | . . . 1 . . . . . . . . . . Duelist 2 | . . . . . . . . . 2 . . . . Sentry 5 | . . . . . . 1 . . . . 4 . . Demolisher 1 | . . . . . . . . . . . . . 1 Specialist 1 | . . . . 1 . . . . . . . . . Hunter 6 | . . . . . 2 . . . . . . . 4 Programmer 4 | . . . . . . . . . 1 . 1 1 1 Heavy 2 | . . . . 1 . . . . . . . . 1 Best Kill Streak 6 | 1 1 4 4 2 1 4 . . 4 1 3 3 6 Combat Bots Only 4 | . 1 4 3 2 1 4 . . 4 . 3 2 3 Max Kills in Single Turn 3 | 1 1 1 1 1 1 1 . . 1 1 1 1 3 Gunslinging . | . . . . . . . . . . . . . . Exploded 1 | . . . 1 . . 1 . . 1 . . . 1 Melee . | . . . . . . . . . . . . . . Uniques/NPCs Destroyed . | . . . . . . . . . . . . . . Combat | -11 -10 -9 -9 -8 -7 -7 -7 -7 -6 -6 -6 -5 -4 -------- Run | Yrd Mat Mat Min Mat Fac Low Low Dat Pro Fac Ext Fac Fac Hostile Shots Fired 641 | . 23 45 24 29 12 43 1 . 217 5 69 10 163 Missed 232 | . 4 9 11 8 2 15 . . 79 3 28 2 71 Hits 409 | . 19 36 13 21 10 28 1 . 138 2 41 8 92 Melee 18 | . . . . . . . 1 . 17 . . . . Projectile 391 | . 19 36 13 21 10 28 . . 121 2 41 8 92 AOE 5 | . . . . . . . . . . . . . 5 Critical Strikes 10 | . . 1 . 1 . . . . 4 . . 1 3 Damage Taken 7547 | . 269 340 112 640 109 369 . . 2010 132 330 152 3084 Core 1976 | . 99 42 17 100 14 . . . 463 . 60 19 1162 Absorbed by Shields 102 | . . . . . . . . . . . 102 . . Redirected to Shielding 20 | . . 20 . . . . . . . . . . . Ignored by Resistances 52 | . . . . . . . . . . . . 7 45 Regen/Repaired (Parts) 111 | . . . . . . . . . . . . 111 . Core Remaining (%) 78 | 100 60 . 85 81 . . . . 31 . 92 98 . Volleys Fired 201 | 8 25 23 9 12 4 10 1 . 28 12 17 13 39 Largest 3 | 2 2 2 2 2 2 2 2 . 2 2 2 3 3 Hottest 204 | 40 40 101 101 101 90 84 84 . 134 170 170 201 204 Shots Fired 395 | 16 50 44 18 24 8 19 2 . 50 16 36 35 77 Gun 249 | 16 50 21 9 21 8 16 1 . 25 4 20 9 49 Cannon 129 | . . 23 9 1 . 3 1 . 25 12 16 26 13 Launcher 15 | . . . . 2 . . . . . . . . 13 Special 2 | . . . . . . . . . . . . . 2 Kinetic 158 | 16 50 34 . . . 10 1 . 15 . 13 13 6 Thermal 107 | . . . . . . . . . 17 16 23 9 42 Explosive 15 | . . . . 2 . . . . . . . . 13 Electromagnetic 115 | . . 10 18 22 8 9 1 . 18 . . 13 16 Robot Hit Streak 20 | 8 9 12 5 9 9 17 1 . 16 11 10 20 8 Robot Miss Streak 5 | 1 3 4 3 1 2 2 1 . 4 4 4 2 5 Penetration Max 1 | . . . . . . . . . . . 1 1 . Secondary Targets . | . . . . . . . . . . . . . . Shots Hit Robots 292 | 12 38 28 13 19 7 12 1 . 33 13 27 28 61 Core Hits 154 | 4 10 13 6 12 6 10 . . 18 4 15 12 44 Critical Kills 3 | . . 1 . . . . . . 1 1 . . . Critical Parts Destroyed . | . . . . . . . . . . . . . . Critical Strikes 16 | . . 2 . . . . . . 2 2 4 1 5 Burn 3 | . . . . . . . . . . 1 2 . . Meltdown 2 | . . . . . . . . . 1 1 . . . Destroy 1 | . . 1 . . . . . . . . . . . Blast 8 | . . 1 . . . . . . . . 2 1 4 Corrupt 2 | . . . . . . . . . 1 . . . 1 Melee Attacks . | . . . . . . . . . . . . . . Impact . | . . . . . . . . . . . . . . Slashing . | . . . . . . . . . . . . . . Piercing . | . . . . . . . . . . . . . . Sneak Attacks . | . . . . . . . . . . . . . . Combat Hostiles . | . . . . . . . . . . . . . . Follow-up Attacks . | . . . . . . . . . . . . . . Damage Inflicted 7071 | 100 313 474 225 648 126 348 19 . 1011 390 774 817 1826 Guns 2933 | 100 313 151 83 327 126 155 19 . 274 62 311 192 820 Cannons 2700 | . . 323 120 38 . 57 . . 451 328 463 595 325 Explosions 1384 | . . . 22 283 . 136 . . 286 . . 30 627 Melee . | . . . . . . . . . . . . . . Ramming 23 | . . . . . . . . . . . . . 23 Kinetic 1731 | 100 313 346 . . . 60 19 . 119 . 370 303 101 Thermal 2785 | . . . 22 187 . 136 . . 601 390 404 222 823 Explosive 687 | . . . . 96 . . . . . . . . 591 Electromagnetic 1845 | . . 128 203 365 126 152 . . 291 . . 292 288 Impact . | . . . . . . . . . . . . . . Slashing . | . . . . . . . . . . . . . . Piercing . | . . . . . . . . . . . . . . Highest Corruption 10 | . . . . 10 2 2 2 2 4 2 9 . 9 Average Corruption 3 | . . . . 3 2 2 2 2 3 2 7 . 3 Corruption Purged . | . . . . . . . . . . . . . . Corruption Blocked . | . . . . . . . . . . . . . . Effects 93 | . . . . 2 . 8 13 2 28 3 30 . 7 Message Errors 26 | . . . . 2 . 1 4 2 9 2 5 . 1 Matter Fused 22 | . . . . . . 4 1 . 5 1 10 . 1 Heat Flow Errors 12 | . . . . . . 1 2 . 5 . 3 . 1 Energy Discharges 8 | . . . . . . . 1 . 3 . 3 . 1 Parts Rejected 1 | . . . . . . . . . . . . . 1 Data Loss (minor) 11 | . . . . . . . 3 . 5 . 2 . 1 Data Loss (major) 5 | . . . . . . 1 1 . 1 . 2 . . Misfires 5 | . . . . . . 1 . . . . 4 . . Alerts 3 | . . . . . . . 1 . . . 1 . 1 Overload Shots . | . . . . . . . . . . . . . . Overflow Damage 157 | . . 24 . 15 . 2 . . 65 1 11 29 10 Projectiles 96 | . . 24 . . . . . . 47 1 11 6 7 Explosions 58 | . . . . 15 . 2 . . 18 . . 23 . Melee 3 | . . . . . . . . . . . . . 3 Knockbacks 8 | . . 3 . . . . . . . . 2 1 2 Impact . | . . . . . . . . . . . . . . Kinetic 8 | . . 3 . . . . . . . . 2 1 2 Secondary . | . . . . . . . . . . . . . . Self-Inflicted Damage 249 | . . . . 38 . 16 . . 81 . . . 114 Shots 7 | . . . . 1 . 1 . . 2 . . . 3 Rammed . | . . . . . . . . . . . . . . Targets Rammed 5 | . . . . . . . . . . . . . 5 Kicked 5 | . . . . . . . . . . . . . 5 Crushed . | . . . . . . . . . . . . . . Highest Temperature 741 | . 25 36 99 57 12 89 132 . 445 231 437 430 741 Average Temperature 153 | . 10 12 49 21 5 23 54 . 154 86 132 200 271 Received Heat Transfer 852 | . 156 96 6 99 . 18 . . 327 12 75 63 . Effects 51 | . . . . . . . . . 4 . 5 2 40 Shutdowns 16 | . . . . . . . . . . . 2 2 12 Energy Bleed 7 | . . . . . . . . . 1 . 1 . 5 Interference 4 | . . . . . . . . . . . 1 . 3 Matter Decay 5 | . . . . . . . . . 1 . 1 . 3 Short Circuit 5 | . . . . . . . . . . . . . 5 Damage (minor) 4 | . . . . . . . . . . . . . 4 Damage (major) 5 | . . . . . . . . . 2 . . . 3 Damage (core) 5 | . . . . . . . . . . . . . 5 Siege Activations . | . . . . . . . . . . . . . . Martial Activations . | . . . . . . . . . . . . . . Shielding Activations . | . . . . . . . . . . . . . . Robots Disrupted . | . . . . . . . . . . . . . . Combat Hostiles . | . . . . . . . . . . . . . . Robots Corrupted . | . . . . . . . . . . . . . . Combat Hostiles . | . . . . . . . . . . . . . . Parts Fried 7 | . . 1 2 3 . . . . 1 . . . . Impact Corruptions 1 | . . . . . . . . . . . . . 1 Robots Melted 4 | . . . . . . . . . 1 1 1 . 1 Combat Hostiles 3 | . . . . . . . . . 1 . 1 . 1 Parts Melted 8 | . . . . . . . . . 2 2 3 1 . Heat Transferred 5186 | . . . 50 200 . 150 . . 781 620 1086 475 1824 Parts Sabotaged . | . . . . . . . . . . . . . . Parts Stolen 1 | . . . . . . . 1 . . . . . . Parts Stripped . | . . . . . . . . . . . . . . Power Chain Reactions 11 | . . . 1 3 . 2 . . 2 . . 1 2 Alert | -11 -10 -9 -9 -8 -7 -7 -7 -7 -6 -6 -6 -5 -4 ------- Run | Yrd Mat Mat Min Mat Fac Low Low Dat Pro Fac Ext Fac Fac Maximum Alert Level 3 | . . . . . . . . . . . 1 3 1 Low Security (%) 77 | 100 100 100 100 100 100 . . . . 100 56 73 29 Level 1 21 | . . . . . . . . . . . 43 12 70 Level 2 . | . . . . . . . . . . . . 9 . Level 3 . | . . . . . . . . . . . . 4 . Level 4 . | . . . . . . . . . . . . . . Level 5 . | . . . . . . . . . . . . . . High Security . | . . . . . . . . . . . . . . Max Security . | . . . . . . . . . . . . . . Peak Influence 748 | 5 45 78 100 32 30 . . . . 182 343 748 362 Initial 362 | . . . 12 11 4 . . . . . 31 148 362 Average 111 | . 9 31 49 5 7 . . . . 83 181 186 237 Influence Increases 3481 | 10 78 182 128 87 84 125 . . 364 247 790 946 440 Destroy 0b10 Robot/C 1620 | . 40 140 100 40 40 100 . . 260 60 360 340 140 Destroy 0b10 Robot/NC 100 | 10 5 15 . 5 . . . . . 10 5 25 25 Destroy Leader 300 | . 12 26 10 12 20 10 . . 50 22 42 54 42 Allied During Kill 769 | . . . . . . . . . 24 21 314 408 2 Successful Hack 62 | . 6 . . 6 24 . . . . . . 26 . Disable Machine 270 | . . . 15 . . . . . . 90 30 60 75 Destroy Structure 255 | . . 1 3 24 . . . . . 44 9 18 156 Lose Combat Pursuer 105 | . 15 . . . . 15 . . 30 . 30 15 . Influence Decreases 3291 | 10 78 150 130 105 96 125 . . 364 182 552 509 990 Entered New Map 614 | . . . 20 19 8 . . . . . 34 155 378 Time Decay 1961 | 10 78 140 110 56 88 115 . . 290 172 426 214 262 Lost Part 315 | . . 10 . 30 . 10 . . 74 10 11 20 150 Lost Ally 401 | . . . . . . . . . . . 81 120 200 Squads Dispatched 18 | . . 1 . 5 1 . . . . 2 1 3 5 Investigation 3 | . . 1 . 1 . . . . . . . 1 . Extermination 2 | . . . . . . . . . . 1 . . 1 Reinforcement 8 | . . . . 2 1 . . . . 1 1 2 1 Assault 2 | . . . . 2 . . . . . . . . . Garrison 3 | . . . . . . . . . . . . . 3 Intercept . | . . . . . . . . . . . . . . Searches Triggered . | . . . . . . . . . . . . . . Data Miner Redirects 1 | . . . . . . . . . . . . 1 . Construction Impeded 1 | . . . . . . . . . . . 1 . . Haulers Reinforced . | . . . . . . . . . . . . . . Active Scanning Responses . | . . . . . . . . . . . . . . Cargo Convoy Interrupts . | . . . . . . . . . . . . . . Stealth | -11 -10 -9 -9 -8 -7 -7 -7 -7 -6 -6 -6 -5 -4 --------- Run | Yrd Mat Mat Min Mat Fac Low Low Dat Pro Fac Ext Fac Fac Distress Signals 10 | . 1 . . 1 . . . . . . 4 3 1 Communications Jammed . | . . . . . . . . . . . . . . Distress Signals . | . . . . . . . . . . . . . . Times Spotted 106 | . 5 11 6 9 2 6 1 . 15 5 18 19 9 Peak Tracking Total 7 | . 3 5 4 4 1 4 1 . 6 2 4 7 4 Tactical Retreats 7 | . 1 . . . . 1 . . 2 . 2 1 . Traps | -11 -10 -9 -9 -8 -7 -7 -7 -7 -6 -6 -6 -5 -4 ------- Run | Yrd Mat Mat Min Mat Fac Low Low Dat Pro Fac Ext Fac Fac Traps Triggered 4 | . . 1 . 1 . . . . . . 2 . . Indirectly . | . . . . . . . . . . . . . . Trap Hack Attempts . | . . . . . . . . . . . . . . Triggered . | . . . . . . . . . . . . . . Disarmed . | . . . . . . . . . . . . . . Reprogrammed . | . . . . . . . . . . . . . . Reused . | . . . . . . . . . . . . . . Traps Extracted . | . . . . . . . . . . . . . . Installed . | . . . . . . . . . . . . . . Triggered . | . . . . . . . . . . . . . . Machines | -11 -10 -9 -9 -8 -7 -7 -7 -7 -6 -6 -6 -5 -4 ---------- Run | Yrd Mat Mat Min Mat Fac Low Low Dat Pro Fac Ext Fac Fac Machines Disabled 18 | . . . 1 . . . . . . 6 2 4 5 Max in Single Turn 2 | . . . 1 . . . . . . . 1 1 2 Garrison Access 1 | . . . . 1 . . . . . . . . . Machines Repaired . | . . . . . . . . . . . . . . Machines Dismantled 1 | . . . . . . . . . . . . . 1 Machines Sabotaged . | . . . . . . . . . . . . . . Overloaded Fab Kills . | . . . . . . . . . . . . . . Hacking | -11 -10 -9 -9 -8 -7 -7 -7 -7 -6 -6 -6 -5 -4 --------- Run | Yrd Mat Mat Min Mat Fac Low Low Dat Pro Fac Ext Fac Fac Machines Accessed 20 | . 1 1 . 1 1 . . 4 1 1 3 3 4 Terminals 8 | . 1 1 . 1 . . . . 1 . 3 . 1 Fabricators 1 | . . . . . . . . . . . . 1 . Repair Stations 3 | . . . . . . . . . . 1 . 1 1 Recycling Units 3 | . . . . . . . . . . . . 1 2 Scanalyzers 1 | . . . . . 1 . . . . . . . . Garrison Access . | . . . . . . . . . . . . . . Total Hacks 68 | . 2 2 . 4 4 . . 32 1 2 5 8 8 Successful 46 | . 2 . . 1 2 . . 32 1 . 1 4 3 Failed 22 | . . 2 . 3 2 . . . . 2 4 4 5 Catastrophic 5 | . . 1 . 1 . . . . . . . 1 2 Database Lockouts . | . . . . . . . . . . . . . . Manual 12 | . 2 2 . 4 . . . . . . 2 . 2 Terminals 15 | . 2 2 . 4 . . . . 1 . 5 . 1 Fabricators 3 | . . . . . . . . . . . . 3 . Repair Stations 9 | . . . . . . . . . . 2 . 3 4 Recycling Units 5 | . . . . . . . . . . . . 2 3 Scanalyzers 4 | . . . . . 4 . . . . . . . . Garrison Access . | . . . . . . . . . . . . . . Terminal Hacks 37 | . 2 . . 1 . . . 32 1 . 1 . . Record 12 | . . . . . . . . 11 1 . . . . Part Schematic 12 | . . . . . . . . 12 . . . . . Robot Schematic 6 | . . . . . . . . 6 . . . . . Prototype ID Bank 3 | . . . . . . . . 3 . . . . . Open Door 1 | . . . . . . . . . . . 1 . . Terminal Index 2 | . 1 . . 1 . . . . . . . . . Zone Layout 1 | . 1 . . . . . . . . . . . . Fabricator Hacks 1 | . . . . . . . . . . . . 1 . Load Schematic 1 | . . . . . . . . . . . . 1 . Repair Station Hacks 3 | . . . . . . . . . . . . 2 1 Scan Component 2 | . . . . . . . . . . . . 1 1 Repair 1 | . . . . . . . . . . . . 1 . Recycling Unit Hacks 2 | . . . . . . . . . . . . 1 1 Retrieve Matter 1 | . . . . . . . . . . . . . 1 Retrieve Components 1 | . . . . . . . . . . . . 1 . Scanalyzer 2 | . . . . . 2 . . . . . . . . Retrieve Study 2 | . . . . . 2 . . . . . . . . Garrison Access Hacks . | . . . . . . . . . . . . . . Unauthorized Hacks 1 | . . . . . . . . . . . . . 1 Terminals . | . . . . . . . . . . . . . . Fabricators . | . . . . . . . . . . . . . . Repair Stations . | . . . . . . . . . . . . . . Recycling Units 1 | . . . . . . . . . . . . . 1 Monitor 1 | . . . . . . . . . . . . . 1 Scanalyzers . | . . . . . . . . . . . . . . Garrison Access . | . . . . . . . . . . . . . . Data Cores Recovered . | . . . . . . . . . . . . . . Used . | . . . . . . . . . . . . . . Hacking Detections 13 | . 1 1 . 1 1 . . . . 1 2 3 3 Full Trace Events 2 | . . . . 1 . . . . . . . 1 . Feedback Events 1 | . . . . . . . . . . . . 1 . Hackware Fried 1 | . . . . . . . . . . . . 1 . Feedback Blocked . | . . . . . . . . . . . . . . Robot Schematics Acquired 6 | . . . . . . . . 6 . . . . . Robots Built . | . . . . . . . . . . . . . . Authchips . | . . . . . . . . . . . . . . Time . | . . . . . . . . . . . . . . Total Robot Build Rating . | . . . . . . . . . . . . . . Part Schematics Acquired 12 | . . . . . . . . 12 . . . . . Parts Built . | . . . . . . . . . . . . . . Authchips . | . . . . . . . . . . . . . . Time . | . . . . . . . . . . . . . . Total Part Build Rating . | . . . . . . . . . . . . . . Part Studies Acquired 2 | . . . . . 2 . . . . . . . . Parts Repaired 1 | . . . . . . . . . . . . 1 . Time 31 | . . . . . . . . . . . . 31 . Parts Recycled . | . . . . . . . . . . . . . . Recycled Matter . | . . . . . . . . . . . . . . Retrieved Matter . | . . . . . . . . . . . . . . Retrieved Components . | . . . . . . . . . . . . . . Parts Scanalyzed . | . . . . . . . . . . . . . . Part Schematics Acquired . | . . . . . . . . . . . . . . Parts Damaged . | . . . . . . . . . . . . . . Bothacking | -11 -10 -9 -9 -8 -7 -7 -7 -7 -6 -6 -6 -5 -4 ------------ Run | Yrd Mat Mat Min Mat Fac Low Low Dat Pro Fac Ext Fac Fac Used RIF Installer . | . . . . . . . . . . . . . . Robots Hacked . | . . . . . . . . . . . . . . Non-combat . | . . . . . . . . . . . . . . Combat . | . . . . . . . . . . . . . . Robot Hacks Applied . | . . . . . . . . . . . . . . Relay Couplers Released 1 | . . . . 1 . . . . . . . . . Machine Destruction 1 | . . . . 1 . . . . . . . . . Fabnet Peak Effective % . | . . . . . . . . . . . . . . Robots Rewired 18 | . . . . . . . . . . . 18 . . Allies Hacked . | . . . . . . . . . . . . . . Hacks Repelled . | . . . . . . . . . . . . . . Allies | -11 -10 -9 -9 -8 -7 -7 -7 -7 -6 -6 -6 -5 -4 -------- Run | Yrd Mat Mat Min Mat Fac Low Low Dat Pro Fac Ext Fac Fac Total Allies 31 | . . . . . . . . . 1 . 30 . . Largest Group 26 | . . . . . . . . . 1 1 26 24 10 Highest-Rated Group 885 | . . . . . . . . . 96 77 885 692 271 Highest-Rated Ally 159 | . . . . . . . . . 96 77 159 39 39 Total Orders . | . . . . . . . . . . . . . . Ally Attacks 248 | . . . . . . . . . 12 7 120 98 11 Total Damage 5620 | . . . . . . . . . 406 348 2978 1739 149 Kills 40 | . . . . . . . . . 4 3 15 18 . Allies Corrupted . | . . . . . . . . . . . . . . Allies Melted . | . . . . . . . . . . . . . . Intel | -11 -10 -9 -9 -8 -7 -7 -7 -7 -6 -6 -6 -5 -4 ------- Run | Yrd Mat Mat Min Mat Fac Low Low Dat Pro Fac Ext Fac Fac Active Infowar (turns) . | . . . . . . . . . . . . . . Robot Analysis Total . | . . . . . . . . . . . . . . Derelict Logs Recovered 6 | . . . 1 . . 1 2 . 2 . . . . Drone Launches . | . . . . . . . . . . . . . . Drone Recoveries . | . . . . . . . . . . . . . . Exploration | -11 -10 -9 -9 -8 -7 -7 -7 -7 -6 -6 -6 -5 -4 ------------- Run | Yrd Mat Mat Min Mat Fac Low Low Dat Pro Fac Ext Fac Fac Turns Passed 7435 | 182 397 377 238 278 282 617 981 166 1415 461 1040 440 561 Spaces Moved 4552 | 92 200 175 130 174 152 351 582 100 1147 326 656 189 278 Core 465 | 1 . . . 1 . . . . 463 . . . . Treads 1931 | 91 200 175 130 27 152 351 582 100 123 . . . . Legs 1352 | . . . . . . . . . . 229 656 189 278 Wheels . | . . . . . . . . . . . . . . Hover 804 | . . . . 146 . . . . 561 97 . . . Flight . | . . . . . . . . . . . . . . Fastest Speed 50 | 50 160 160 160 112 166 167 167 167 50 90 100 105 112 Average Speed 134 | 158 160 160 160 124 167 167 167 167 111 127 104 122 136 Slowest Speed 550 | 160 160 160 160 550 170 167 167 167 190 190 105 185 190 Overloaded Moves . | . . . . . . . . . . . . . . Propulsion Burnouts . | . . . . . . . . . . . . . . Robots Hopped . | . . . . . . . . . . . . . . Potential Cave-ins . | . . . . . . . . . . . . . . Cave-ins Triggered . | . . . . . . . . . . . . . . Exploration Rate (%) 38 | 4 38 23 38 24 4 59 72 75 97 9 77 9 9 Regions Visited 13 Branch Regions 6 Pre-discovered Areas 2 | . . . 1 . . . . 1 . . . . . Known Exits Taken 2 | . . . . . . . . . 1 1 . . . Unknown Exits Taken 11 | 1 1 1 1 1 1 1 1 1 . . 1 1 . Scrap Searched 10 | . . . 1 . . 3 3 . 3 . . . . Spaces Dug . | . . . . . . . . . . . . . . Terrain Destroyed 133 | . . 1 3 28 . 6 . . 7 1 . 2 85 Melee . | . . . . . . . . . . . . . . Projectile 7 | . . 1 . . . 2 . . 1 1 . 2 . AOE 126 | . . . 3 28 . 4 . . 6 . . . 85 Terrain Rammed . | . . . . . . . . . . . . . . Walls Destroyed . | . . . . . . . . . . . . . . Machines Disabled . | . . . . . . . . . . . . . . Actions | -11 -10 -9 -9 -8 -7 -7 -7 -7 -6 -6 -6 -5 -4 --------- Run | Yrd Mat Mat Min Mat Fac Low Low Dat Pro Fac Ext Fac Fac Total 5471 | 112 239 235 143 212 172 365 589 99 1234 353 983 366 369 Wait 351 | . 4 6 . . . . . . 22 . 155 156 8 Move 4539 | 91 199 174 129 173 151 350 581 99 1146 325 655 188 278 Hop . | . . . . . . . . . . . . . . Pick Up 61 | 6 4 9 1 6 4 1 4 . 7 7 6 1 5 Fast Attach 57 | 7 1 4 1 6 5 . . . 11 5 5 4 8 Attach 36 | . . 3 . 3 3 3 1 . 10 2 2 1 8 Detach 6 | . . 1 . 1 1 . . . 2 . . . 1 Swap 20 | . 2 3 . 2 1 . 1 . . 1 3 2 5 Drop 58 | . 4 12 3 9 3 1 1 . 4 1 13 1 6 Fire 201 | 8 25 23 9 12 4 10 1 . 28 12 17 13 39 Melee . | . . . . . . . . . . . . . . Ram . | . . . . . . . . . . . . . . Kick 5 | . . . . . . . . . . . . . 5 Crush . | . . . . . . . . . . . . . . Escape Stasis 2 | . . . . . . . . . . . 2 . . Rewire 129 | . . . . . . . . . 4 . 125 . . Trap . | . . . . . . . . . . . . . . Miscellaneous 6 | . . . . . . . . . . . . . 6 Route ------- -11/Scrapyard -10/Materials -9/Materials (discovered 2 exits: [*Min x2]) -9/Mines -8/Materials -7/Factory -7/Lower Caves -7/Lower Caves (discovered 2 exits: Fac / *Dat) -7/Data Miner -6/Proximity Caves -6/Factory (discovered 2 exits: *Fac / *Ext) -6/Extension (discovered 3 exits: *Fac x2 / [*Cet]) -5/Factory (discovered 2 exits: *Fac / Upp) -4/Factory History --------- Turn | Location | Event 33 | -11/Scrapyard | Discovered new exit (range 16) 183 | -11/Scrapyard | Entered Materials 317 | -10/Materials | Build established: Mutant 481 | -10/Materials | Discovered new exit (range 10) 580 | -10/Materials | Entered another Materials area 580 | -9/Materials | Evolved 2 slots: Propulsion x1, Utility x1 623 | -9/Materials | Discovered new exit (range 3) 803 | -9/Materials | Discovered new exit (range 6) 957 | -9/Materials | Entered Mines 976 | -9/Mines | Learned location of Storage (-7) 977 | -9/Mines | Met a Derelict bent on vengeance 1116 | -9/Mines | Discovered new exit (range 11) 1138 | -9/Mines | Found a Scrap Suit stashed away for nefarious purposes 1142 | -9/Mines | Found Scrap Suit 1195 | -9/Mines | Entered Materials 1195 | -8/Materials | Evolved 2 slots: Utility x2 1316 | -8/Materials | Met 7R-MNS 1387 | -8/Materials | Discovered new exit (range 10) 1441 | -8/Materials | Lost 3 parts (1n1u1w) 1441 | -8/Materials | System corruption reached 10% 1473 | -8/Materials | Entered Factory 1473 | -7/Factory | Evolved 2 slots: Power x1, Propulsion x1 1474 | -7/Factory | Caught up to 7R-MNS 1644 | -7/Factory | Discovered new exit (range 6) 1680 | -7/Factory | Build established: Scavenger-Mutant 1755 | -7/Factory | Entered Lower Caves 1824 | -7/Lower Caves | Attracted the attention of an 0b10 checkpoint 2217 | -7/Lower Caves | Learned location of 1 exit from Factory 2231 | -7/Lower Caves | Discovered new exit (range 14) 2233 | -7/Lower Caves | Encountered a Warlord checkpoint 2372 | -7/Lower Caves | Entered another Lower Caves area 2987 | -7/Lower Caves | Learned Factory trap positions 3248 | -7/Lower Caves | Discovered new exit (range 10) 3293 | -7/Lower Caves | Identified exit to Factory 3353 | -7/Lower Caves | Entered Data Miner 3353 | -7/Data Miner | Discovered new exit (range 6) 3385 | -7/Data Miner | Met Data Miner 3435 | -7/Data Miner | Learned location of Section 7 (-2) 3435 | -7/Data Miner | Acquired the access code to Warlord's prototype stash 3477 | -7/Data Miner | Received God Mode back door access code from Data Miner 3519 | -7/Data Miner | Entered Proximity Caves 3632 | -6/Proximity Caves | Lost 3 parts (1n2w) 3775 | -6/Proximity Caves | Attracted the attention of an 0b10 checkpoint 3808 | -6/Proximity Caves | Released all parts (7) 3835 | -6/Proximity Caves | Lost 8 parts (3p3n2w) 4034 | -6/Proximity Caves | Core integrity fell below 50% 4082 | -6/Proximity Caves | Escorted by Enhanced Grunt 4090 | -6/Proximity Caves | Build established: Mutant 4518 | -6/Proximity Caves | Discovered exit to Factory (range 13) 4628 | -6/Proximity Caves | Learned Factory emergency access door positions 4934 | -6/Proximity Caves | Entered Factory 4934 | -6/Factory | Accompanied by 1 ally 4934 | -6/Factory | Evolved 2 slots: Utility x2 4935 | -6/Factory | Identified exit to Extension 4936 | -6/Factory | Loaded intel: 105 trap records 5180 | -6/Factory | Discovered new exit (range 5) 5395 | -6/Factory | Entered Extension 5395 | -6/Extension | Accompanied by 1 ally 5443 | -6/Extension | Rescued A7 5495 | -6/Extension | Rescued a captive Derelict 5495 | -6/Extension | Rescued a captive Derelict 5652 | -6/Extension | Rescued a captive Derelict 5653 | -6/Extension | Rescued a captive Derelict 5728 | -6/Extension | Rescued a captive Derelict 5765 | -6/Extension | Spotted B-75 Beast 5816 | -6/Extension | Allies destroyed B-75 Beast 5818 | -6/Extension | Spotted B-75 Beast 5819 | -6/Extension | Rescued a captive Derelict 5820 | -6/Extension | Rescued a captive Derelict 5836 | -6/Extension | Allies destroyed B-75 Beast 5854 | -6/Extension | Discovered new exit (range 3) 5857 | -6/Extension | Lost 3 allies 5907 | -6/Extension | Rescued a captive Derelict 5908 | -6/Extension | Rescued a captive Derelict 5951 | -6/Extension | Build established: Commander-Mutant 6094 | -6/Extension | Rescued a captive Derelict 6094 | -6/Extension | Rescued a captive Derelict 6103 | -6/Extension | Rescued a captive Derelict 6132 | -6/Extension | Discovered new exit (range 10) 6133 | -6/Extension | Discovered new exit (range 6) 6435 | -6/Extension | Entered Factory 6435 | -5/Factory | Accompanied by 25 allies (A7) 6435 | -5/Factory | Evolved 2 slots: Utility x1, Weapon x1 6436 | -5/Factory | Identified exit to Upper Caves 6553 | -5/Factory | Hacking Suite fried by hacking feedback 6573 | -5/Factory | Incoming investigation squad redirected 6668 | -5/Factory | Repaired Myomer Leg 6823 | -5/Factory | Discovered new exit (range 12) 6875 | -5/Factory | Entered another Factory area 6875 | -4/Factory | Accompanied by 10 allies 6875 | -4/Factory | Evolved 2 slots: Utility x2 6877 | -4/Factory | Lost 8 allies 6896 | -4/Factory | Build established: Commander-Gunner 6983 | -4/Factory | Garrison activated, responded to threat 7021 | -4/Factory | Core integrity fell below 50% 7029 | -4/Factory | Lost 10 allies 7085 | -4/Factory | Core integrity fell below 20% 7221 | -4/Factory | Lost 6 parts (1p1n2u2w) 7436 | -4/Factory | Destroyed self with Reinforced Deuterium Engine chain reaction Last Messages --------------- cleaned. 07426_ P-70 Sage heat spikes uncontrollably. 07426_ P-70 Sage destroyed. 07427_ K-01 Serf collects debris. 07427_ P-70 Sage misfires. 07427_ U-05 Engineer builds a Wall. 07431_ K-01 Serf collects debris. 07431_ U-05 Engineer lays Concrete. 07433_ U-05 Engineer builds a Door. 07433_ U-05 Engineer lays Concrete. 07434_ Acquired Mic. Fission Core. 07434_ U-05 Engineer lays Concrete. 07435_ >> MONITOR: Recycling Unit F007 accepting Corrupted Antigrav System (25%). 07436_ Neutrino Reactor explodes. 07436_ P-70 Sage heat damages Mic. Fission Core. 07436_ Neutrino Reactor explodes. 07436_ U-05 Engineer destroyed. 07436_ Chain reaction triggered in Corrupted Lgt. Ion Engine. 07436_ Chain reaction triggered in Rnf. Deuterium Engine. Map ----- +----------------------------------------------------+ | # """ #????????????????????????????????????? | | #?? ??????????????????????????????????????? | | #+###?##+########????????????????????????????????? | | #?# ?????????????????????????? | | ### ##### T#???????????????????????????????? | | " #??????????????????????????????????????? | | ### #??????????????????????????????????????? | | #?# #??????????????????????????????????????? | | ##+##?# #??????????????????????????????????????? | | #?# #??????????????????????????????????????? | | #?# #??????????????????????????????????????? | | #?# #??????????????????????????????????????? | | ### ###????????????????????????????????????? | | ##### #????????????????????????????????????? | | #######+#########+#####??????????????? | | ##### " k ???????????? | | ????# "T ???????????? | | ????# ???????????? | | ????# ### ##+ ########+#####??????????????? | | ????# #?# p # #???????????????? | | ???#####+###### ; #???????????????? | | ???# # * ! # #???????????????? | | ???# """ ## ]! %! #???????????????? | | ???# Y" ###! =| #???????????????? | | ???# """ #?# #???????????????? | | ???# """ #?# %@ #???????????????? | | ???# """ #?# #???????????????? | | ???# """ #?# #???????????????? | | ???# #?##### #####???????????????? | | ???###########?????# #######???????????????????? | | ???????????????????#####?????????????????????????? | | ?????????????????????????????????????????????????? | | ?????????????????????????????????????????????????? | | ?????????????????????????????????????????????????? | | ?????????????????????????????????????????????????? | | ?????????????????????????????????????????????????? | | ?????????????????????????????????????????????????? | | ?????????????????????????????????????????????????? | | ?????????????????????????????????????????????????? | | ?????????????????????????????????????????????????? | | ?????????????????????????????????????????????????? | | ?????????????????????????????????????????????????? | | ?????????????????????????????????????????????????? | | ?????????????????????????????????????????????????? | | ?????????????????????????????????????????????????? | | ?????????????????????????????????????????????????? | | ?????????????????????????????????????????????????? | | ?????????????????????????????????????????????????? | | ?????????????????????????????????????????????????? | | ?????????????????????????????????????????????????? | +----------------------------------------------------+ Best States ------------- Heat Dissipation 51 Energy Generation 33 Energy Capacity 1025 Matter Stores 300 Matter Capacity 300 Sight Range 16 Terrain Scan Density 210 Armor Coverage 825 Resistance: KI 30 Weapon Shielding 33 Phase Shifting 10 Evasion (%) 65 Targeting Accuracy 16 Target Analysis 8 Core Analysis 6 Armor Integrity Analysis 30 Recoil Reduction 4 Offensive Hacking 11 Defensive Hacking 14 Item Schematics ----------------- Lgt. Regenerative Plating | -7/Data Miner | Free Combat Drone Bay | -7/Data Miner | Free Cld. Cesium-ion Thruster | -7/Data Miner | Free Gravity Neutralizer | -7/Data Miner | Free Antimatter Cannon | -7/Data Miner | Free Gyrokinetic Inverter | -7/Data Miner | Free Remote Force Field | -7/Data Miner | Free Adv. Plasma Cannon | -7/Data Miner | Free Hyp. Gauss Cannon | -7/Data Miner | Free Tesla Rifle | -7/Data Miner | Free Imp. Antigrav System | -7/Data Miner | Free Adv. Thermal Shield | -7/Data Miner | Free Robot Schematics ------------------ S-27 Virus | -7/Data Miner | Free G-47 Trooper | -7/Data Miner | Free B-48 Gladiator | -7/Data Miner | Free I-47 Archangel | -7/Data Miner | Free G-50 Soldier | -7/Data Miner | Free R-10 Processor | -7/Data Miner | Free Fabricated ------------ Nothing Repaired ---------- Myomer Leg | 30% | -5/Factory Studied --------- Arm. Treads | -7/Factory | Hacked EM Pulse Cannon | -7/Factory | Hacked Alien Tech Used ----------------- None Achievements -------------- Prison Break Sprinter The Oracle Challenges ------------ None Game ------ Seed MagneticDamperMultirail Manual? 0 Play Time 01:10:01 Cumulative 29.2 hours Start 2026.01.11 @ 12:37:09 End 2026.01.11 @ 13:53:27 Sessions 1 Manual Loads 0 Difficulty Rogue Special Mode None Game No. 53 Rogue 50 Adventurer 3 Explorer 0 Win Type - Total 0 Types 0/0/0/0/0/0/0/0/0/0 Lore% 12 Gallery% 29 Achievement% 22 Wizard Run 0 Options --------- Layout 0 ASCII 0 Keyboard 0 Movement Mouse Keybinds 0 Fullscreen 1 Font 18/SmallcapsGlow Map View 65x51 Zoom Use 52% Tactical HUD 1 Map Filters NONE Filters NONE Steam 1 RUN: 682d845f-b456-456c-b4f2-3864b6f2b401